bitfinex/quotes_ETHUSD_20240810
["timestamp","ask_amount","ask_price","bid_price","bid_amount"]
[1723250660331,0.095,2589.3,2588.7,3.86289]
[1723250660504,3.95743,2589.1,2588.4,3.86326]
[1723250660713,0.095,2589.1,2588.6,3.86306]
[1723250660909,3.95734,2589.1,2588.5,3.8632]
[1723250661112,0.095,2589.1,2588.6,3.86309]
[1723250661423,3.86274,2588.9,2588.3,3.6958]
[1723250661621,3.95774,2588.9,2588.3,7.55932]
[1723250661838,0.095,2588.7,2588.0,3.86389]
[1723250662046,3.95802,2588.7,2588.1,3.86382]
[1723250662201,0.095,2588.7,2588.2,3.86368]
[1723250662544,0.095,2588.7,2588.4,3.86337]
[1723250662708,0.095,2589.1,2588.5,3.86322]
[1723250662909,0.095,2589.1,2588.6,0.07724961]
[1723250663131,0.095,2589.1,2588.6,3.86309]
[1723250663447,3.86133,2589.8,2588.1,3.86374]
[1723250663448,0.095,2589.6,2588.9,3.86251]
[1723250663602,0.095,2589.6,2588.9,0.755831]
[1723250663795,0.095,2589.6,2588.7,3.6958]
[1723250663796,0.095,2589.6,2589.2,3.86217]
[1723250664003,0.095,2589.6,2589.1,3.86222]
[1723250664004,0.095,2589.6,2589.1,7.72447]
[1723250664236,0.095,2589.6,2589.2,3.86211]
[1723250664538,3.95701,2589.4,2588.7,3.6958]
[1723250664747,3.95701,2589.4,2588.7,7.55864]
[1723250664748,8.600888,2589.4,2588.7,7.55864]
[1723250664898,3.95701,2589.4,2588.8,3.86278]
[1723250665245,3.9572,2589.2,2588.5,3.86314]
[1723250665403,0.095,2589.2,2588.7,3.86292]
[1723250665712,3.86195,2589.4,2588.9,3.86259]
[1723250665713,0.095,2589.4,2588.9,3.86259]
[1723250665915,0.095,2589.4,2588.9,3.86255]
[1723250666151,0.095,2589.2,2588.7,3.86286]
[1723250666436,3.9575,2589.0,2588.4,3.86336]
[1723250666735,3.95752,2589.0,2588.3,3.86343]
[1723250667146,0.095,2588.7,2588.2,7.55945]
[1723250667300,3.95826,2588.5,2587.9,7.7281]
[1723250667500,0.095,2588.5,2588.0,3.86385]
[1723250667806,0.095,2588.5,2588.0,7.72775]
[1723250668432,3.86304,2588.7,2587.8,3.6958]
[1723250668433,0.095,2588.7,2587.8,3.6958]
[1723250668627,0.095,2588.7,2588.0,3.86388]
[1723250668833,0.095,2588.7,2588.2,7.72722]
[1723250669038,0.095,2588.7,2588.2,3.86359]
[1723250669244,0.095,2588.7,2588.0,3.86394]
[1723250669245,0.095,2588.5,2588.0,3.86394]
[1723250669608,0.095,2588.7,2587.8,3.6958]
[1723250669811,0.095,2588.9,2587.9,0.36958]
[1723250670114,7.82044,2588.9,2588.2,3.8636]
[1723250670318,3.86292,2588.8,2588.2,3.8636]
[1723250670504,3.95768,2588.9,2588.0,3.8639]
[1723250670505,0.095,2588.6,2588.1,3.86373]
[1723250670912,0.095,2588.6,2588.0,3.86388]
[1723250671352,0.095,2588.6,2588.1,3.86375]
[1723250671549,0.095,2588.6,2587.8,7.56]
[1723250671757,0.395768,2588.8,2587.4,3.6958]
[1723250671758,0.095,2588.2,2587.4,3.6958]
[1723250671909,0.095,2588.0,2587.6,3.86457]
[1723250672114,0.095,2588.0,2587.4,3.86475]
[1723250672309,3.86357,2588.3,2587.6,3.86449]
[1723250672310,0.095,2588.2,2587.6,3.86449]
[1723250672555,0.095,2588.0,2587.6,3.86449]
[1723250672908,0.095,2588.4,2587.8,3.86418]
[1723250673223,0.095,2588.2,2587.9,0.05912173]
[1723250673442,0.095,2588.4,2587.9,0.05912173]
[1723250673628,0.095,2588.4,2588.0,3.86397]
[1723250673827,0.095,2588.2,2587.8,3.86418]
[1723250674039,0.095,2588.6,2587.9,3.86412]
[1723250674265,0.095,2588.6,2588.0,0.0772605]
[1723250674618,0.095,2588.6,2588.1,3.86373]
[1723250674815,0.095,2588.6,2588.2,0.07726049]
[1723250675443,0.095,2588.4,2587.9,7.72807]
[1723250675750,0.095,2588.4,2587.9,3.86403]
[1723250676256,0.095,2588.4,2587.9,7.72807]
[1723250676430,0.095,2588.4,2588.0,3.86398]
[1723250676632,0.095,2588.4,2587.9,7.72808]
[1723250676939,0.777148,2588.6,2588.0,0.07726492]
[1723250676940,0.095,2588.6,2588.0,0.07726492]
[1723250677177,0.095,2588.8,2588.3,3.86345]
[1723250677317,0.095,2588.8,2588.4,3.94055914]
[1723250677515,0.095,2589.0,2588.6,3.86305]
[1723250677721,0.095,2589.2,2589.0,3.86248]
[1723250677969,3.8135,2589.4,2588.4,3.8633]
[1723250677970,0.095,2589.0,2588.4,3.8633]
[1723250678260,3.95759,2589.0,2588.4,3.86338]
[1723250678458,0.095,2588.7,2588.3,3.86352]
[1723250678643,0.095,2588.7,2588.3,3.86345]
[1723250678841,0.095,2588.7,2587.9,7.5599]
[1723250678842,0.095,2589.1,2588.8,3.86278]
[1723250679053,0.095,2589.1,2588.6,3.86298]
[1723250679916,0.095,2589.1,2588.7,3.86292]
[1723250680122,0.095,2589.1,2588.6,3.86298]
[1723250680358,0.095,2589.1,2587.9,3.6958]
[1723250680359,0.095,2588.9,2587.9,3.6958]
[1723250680559,0.095,2588.9,2588.4,3.86336]
[1723250680720,0.095,2588.9,2588.4,7.7266]
[1723250680933,0.095,2589.1,2588.0,0.36958]
[1723250681257,0.095,2589.1,2588.8,3.86278]
[1723250681573,3.8135,2589.4,2588.9,0.07724338]
[1723250681574,0.095,2589.3,2588.9,0.07724338]
[1723250682228,0.095,2589.3,2589.0,3.86237]
[1723250682436,0.095,2589.3,2588.0,0.36958]
[1723250682437,0.095,2589.3,2588.8,3.8627]
[1723250682658,3.95706,2589.3,2588.8,3.8627]
[1723250682868,3.95706,2589.3,2588.6,3.86295]
[1723250683168,3.95706,2589.3,2588.9,3.86256]
[1723250683169,0.095,2589.3,2588.9,3.86256]
[1723250683365,0.095,2589.3,2588.7,4.2491]
[1723250683667,0.095,2589.3,2588.8,3.86277]
[1723250684065,0.095,2589.3,2588.8,0.811187]
[1723250684272,0.095,2589.7,2588.9,3.88349443]
[1723250684441,0.095,2589.7,2589.2,3.86207]
[1723250684629,0.095,2589.7,2589.3,3.93918676]
[1723250686460,0.095,2589.7,2589.3,0.07722676]
[1723250686665,0.095,2589.7,2588.6,3.5555]
[1723250686666,0.095,2589.1,2588.5,3.86317]
[1723250686962,0.095,2589.1,2588.9,3.86263]
[1723250687375,0.095,2589.1,2588.9,3.86256]
[1723250687576,0.095,2589.1,2588.8,0.07724359]
[1723250687577,0.095,2588.9,2588.5,3.86316]
[1723250687937,3.760283,2589.7,2588.8,3.86276]
[1723250687938,0.095,2589.2,2588.8,3.86276]
[1723250688146,0.095,2589.0,2588.8,3.86268]
[1723250688347,0.095,2589.0,2588.4,3.86329]
[1723250688681,0.095,2589.0,2588.5,3.86322]
[1723250688833,0.095,2589.0,2588.4,3.86329]
[1723250689040,3.95751,2589.0,2588.4,3.86329]
[1723250689236,0.095,2589.0,2588.6,3.86296]
[1723250689484,0.095,2589.0,2588.4,3.86328]
[1723250689770,0.095,2589.0,2588.6,3.86299]
[1723250690345,0.095,2589.2,2588.9,3.86258]
[1723250690576,0.095,2589.2,2589.0,0.03812568]
[1723250690978,0.095,2588.9,2588.5,3.86315]
[1723250691175,0.095,2588.9,2588.6,3.86298]
[1723250691337,0.095,2588.9,2588.5,3.86315]
[1723250691845,0.095,2588.9,2588.5,3.86314]
[1723250692312,0.095,2588.9,2588.6,3.86297]
[1723250692622,0.095,2589.1,2588.7,3.94010948]
[1723250692773,0.095,2589.1,2588.7,3.86286]
[1723250693179,0.095,2588.8,2588.6,3.86298]
[1723250693418,0.095,2589.0,2588.7,3.86286]
[1723250693583,0.095,2589.0,2588.7,0.07286354]
[1723250693781,0.095,2588.6,2587.9,6.86407]
[1723250693980,3.86089,2590.1,2587.9,6.86407]
[1723250693981,0.095,2589.8,2588.5,3.86318]
[1723250694218,0.095,2590.0,2589.6,3.86149]
[1723250694385,0.095,2590.1,2589.8,7.72242]
[1723250694705,0.1269629,2590.4,2590.1,3.86072]
[1723250694878,0.095,2590.3,2589.9,7.72211]
[1723250695074,0.095,2589.9,2589.3,7.41748]
[1723250695280,0.095,2589.9,2589.3,4.3358704]
[1723250695486,0.095,2589.9,2589.6,3.86148]
[1723250696099,0.095,2589.9,2589.6,7.72296]
[1723250696293,0.095,2589.9,2589.6,3.86148]
[1723250696485,0.095,2589.9,2589.4,3.86178]
[1723250696832,0.095,2589.9,2589.7,3.86133]
[1723250697121,0.095,2589.9,2589.5,4.68150504]
[1723250697279,0.095,2589.9,2589.6,0.07721639]
[1723250697481,3.9874229,2590.4,2589.7,3.86131]
[1723250697482,0.095,2590.1,2589.7,3.86131]
[1723250697822,0.095,2590.1,2589.8,3.93851042]
[1723250698121,0.095,2590.1,2589.8,0.07721042]
[1723250698691,0.095,2590.1,2589.3,3.5555]
[1723250698910,0.1269629,2590.4,2589.3,4.2560924]
[1723250698911,0.095,2589.8,2589.3,4.2560924]
[1723250699118,0.095,2590.1,2589.7,3.8613]
[1723250699415,0.095,2590.1,2589.8,0.07710848]
[1723250699628,0.095,2590.1,2589.8,3.93825848]
[1723250699813,0.095,2590.1,2589.8,0.07710848]
[1723250700011,0.095,2590.1,2589.6,3.86151]
[1723250700221,0.095,2590.3,2590.0,3.86091]
[1723250700523,0.1269629,2590.4,2589.6,0.84946322]
[1723250700524,0.1269629,2590.4,2590.3,7.7211]
[1723250701124,0.1269629,2590.4,2590.3,11.58165]
[1723250701329,0.1269629,2590.4,2590.1,3.86076]
[1723250701518,0.095,2590.3,2589.3,4.1120724]
[1723250701726,0.1269629,2590.4,2589.3,4.1120724]
[1723250701727,0.1269629,2590.4,2590.1,3.86073]
[1723250702034,0.1269629,2590.4,2590.3,7.7211]
[1723250702237,1.57503357,2592.0,2590.3,7.7211]
[1723250702238,0.095,2592.0,2591.5,3.85876]
[1723250702389,0.095,2592.0,2590.4,3.7179]
[1723250702390,0.095,2591.6,2590.4,3.7179]
[1723250702590,0.095,2591.2,2590.8,3.85971]
[1723250703394,0.095,2591.2,2591.0,3.85941]
[1723250703627,0.095,2591.2,2590.8,3.8597]
[1723250703797,0.095,2591.2,2589.4,0.41120724]
[1723250703996,0.095,2590.6,2590.2,3.86065]
[1723250704197,0.095,2590.4,2589.9,3.86108]
[1723250704509,0.095,2590.1,2589.6,3.7179]
[1723250704966,0.095,2590.1,2589.8,3.86118]
[1723250705235,0.095,2591.3,2590.0,3.7179]
[1723250705409,0.095,2591.3,2590.9,3.85953]
[1723250705607,0.095,2591.1,2590.7,3.85992]
[1723250705931,0.095,2591.1,2590.8,3.8598]
[1723250706101,0.095,2591.1,2590.8,0.84915226]
[1723250706429,0.095,2591.6,2591.2,3.85916]
[1723250706636,0.095,2591.6,2591.0,7.71881]
[1723250706838,0.095,2591.6,2591.0,5.0802582]
[1723250707020,0.095,2591.6,2591.1,3.85926]
[1723250707199,0.095,2591.3,2591.0,1.2208682]
[1723250707396,0.095,2591.3,2589.7,23.42137]
[1723250707397,0.095,2590.7,2590.0,7.57883]
[1723250707598,0.095,2590.9,2590.1,0.7964948]
[1723250707797,0.095,2590.9,2590.4,3.86029]
[1723250708001,0.045,2591.1,2590.8,3.85978]
[1723250708195,0.045,2591.1,2590.8,3.85971]
[1723250708426,0.045,2591.1,2590.6,3.86008]
[1723250708646,0.045,2590.8,2590.1,0.7964948]
[1723250708941,3.5541,2591.5,2590.4,3.86039]
[1723250708942,0.045,2590.6,2590.4,3.86039]
[1723250709245,0.045,2590.4,2590.1,0.7964948]
[1723250709450,0.045,2590.1,2589.7,3.86142]
[1723250709602,0.045,2590.1,2589.6,0.92509]
[1723250709805,0.045,2590.1,2589.5,7.72327]
[1723250709806,0.045,2590.1,2589.5,3.86163]
[1723250710016,0.045,2590.1,2589.7,3.86143]
[1723250710347,0.045,2590.1,2589.7,3.86135]
[1723250710654,0.045,2590.1,2589.8,0.386135]
[1723250710825,0.045,2590.4,2590.1,7.72159]
[1723250711043,0.045,2590.8,2589.9,3.7179]
[1723250711365,0.045,2590.8,2590.5,3.86015]
[1723250711528,0.045,2590.4,2590.1,7.72156]
[1723250711858,0.045,2590.8,2590.3,3.86053]
[1723250712358,0.045,2590.8,2590.3,7.79811074]
[1723250712656,0.045,2590.6,2590.4,3.93756253]
[1723250712856,0.045,2590.6,2590.4,0.07719253]
[1723250713168,0.045,2590.6,2590.1,3.86073]
[1723250713336,0.045,2590.6,2590.2,0.386073]
[1723250713657,3.85982,2590.8,2589.7,19.56]
[1723250713658,0.045,2590.4,2590.1,3.86075]
[1723250713865,3.5541,2591.1,2589.7,3.86136]
[1723250713866,0.045,2590.2,2589.7,3.86136]
[1723250714052,0.045,2590.2,2589.3,12.2509]
[1723250714356,0.045,2589.8,2589.4,1.611304]
[1723250714563,0.045,2589.8,2588.4,23.42335]
[1723250714564,0.045,2589.4,2589.0,3.86248]
[1723250714869,0.045,2589.4,2589.0,0.77252]
[1723250715162,0.045,2589.2,2589.0,0.77252]
[1723250715320,0.045,2589.2,2588.7,7.7257]
[1723250715524,0.045,2589.2,2588.9,3.86262]
[1723250715919,0.045,2589.2,2589.0,3.86248]
[1723250716257,0.045,2589.2,2589.0,3.86246]
[1723250716464,0.045,2589.2,2589.0,3.86239]
[1723250716618,0.045,2589.2,2588.8,3.86267]
[1723250716825,0.045,2590.0,2589.8,3.86115]
[1723250717055,3.5541,2591.5,2590.4,3.8604]
[1723250717236,3.5541,2591.5,2589.6,3.7179]
[1723250717237,3.85916,2591.3,2590.6,3.86]
[1723250717561,0.045,2591.3,2590.6,3.8601]
[1723250717760,0.045,2591.3,2591.1,3.85925]
[1723250717965,7.41214,2592.0,2591.2,0.0771748]
[1723250718121,0.045,2591.3,2590.6,3.85997]
[1723250718325,0.045,2591.3,2591.1,3.85927]
[1723250718538,0.045,2591.5,2591.3,3.85896]
[1723250718737,0.045,2591.5,2591.4,3.85891]
[1723250719379,0.045,2591.5,2591.2,3.85919]
[1723250719542,0.045,2591.5,2591.0,3.8595]
[1723250719742,0.045,2591.5,2590.7,3.85992]
[1723250719743,0.045,2591.2,2590.7,3.85992]
[1723250719953,0.045,2591.0,2590.7,0.771996]
[1723250720253,0.045,2591.0,2590.6,3.86001]
[1723250720587,0.045,2591.0,2590.5,3.86024]
[1723250720883,0.045,2590.2,2589.8,3.86119]
[1723250721067,0.045,2590.2,2589.9,3.86104]
[1723250721271,0.045,2590.2,2589.8,3.86118]
[1723250721467,0.045,2589.8,2589.3,3.713]
[1723250721676,0.045,2589.8,2589.7,3.86145]
[1723250721977,0.045,2590.2,2589.7,0.06346617]
[1723250722144,0.045,2590.2,2590.1,3.86085]
[1723250722342,0.045,2590.0,2589.8,3.8612]
[1723250722560,0.045,2590.0,2589.8,7.7224]
[1723250722766,0.045,2590.0,2589.8,3.8612]
[1723250722953,0.045,2590.2,2589.9,3.86115]
[1723250723171,7.63483,2590.9,2589.5,3.86174]
[1723250723172,0.045,2589.6,2589.5,3.86174]
[1723250724866,0.045,2589.8,2589.7,3.86145]
[1723250725071,3.86047,2590.4,2589.7,3.86145]
[1723250725072,0.045,2590.2,2589.7,0.85723865]
[1723250725275,0.045,2590.1,2589.9,3.86108]
[1723250725448,0.045,2590.1,2589.9,3.86104]
[1723250725647,0.045,2590.3,2590.0,3.86089]
[1723250725882,0.045,2590.3,2590.1,3.86075]
[1723250726094,0.045,2590.3,2589.9,3.86108]
[1723250726300,0.045,2590.1,2589.9,4.247158]
[1723250726500,0.045,2590.3,2590.0,3.86089]
[1723250726660,0.045,2590.3,2590.1,3.86073]
[1723250726855,0.045,2590.3,2589.9,3.86114]
[1723250727055,0.045,2589.8,2589.6,19.56]
[1723250727256,6.7751,2590.9,2589.0,7.57537]
[1723250727257,0.045,2589.4,2589.3,3.86194]
[1723250727696,0.045,2589.5,2589.4,3.86186]
[1723250728281,0.045,2589.5,2589.4,7.72375]
[1723250728483,0.045,2589.8,2589.3,3.86203]
[1723250728898,0.045,2589.8,2589.1,2.713544]
[1723250729100,3.7751,2590.4,2589.4,3.86189]
[1723250729101,0.045,2589.7,2589.4,3.86189]
[1723250729260,3.7751,2590.4,2589.4,3.86189]
[1723250729261,0.045,2589.5,2589.4,3.86189]
[1723250729685,0.045,2589.5,2589.3,3.86194]
[1723250730006,0.045,2589.5,2589.3,4.5194884]
[1723250730299,0.045,2589.7,2589.3,4.5195184]
[1723250730469,0.045,2589.7,2589.3,4.5194884]
[1723250730807,0.045,2589.7,2589.5,3.8617]
[1723250730959,0.045,2589.7,2589.6,3.8616]
[1723250731160,0.045,2590.5,2590.2,3.8606]
[1723250731434,0.045,2590.9,2590.6,3.8601]
[1723250731555,0.045,2590.3,2589.9,3.86109]
[1723250731760,0.045,2590.5,2590.2,3.8607]
[1723250731973,0.045,2590.7,2590.0,3.861]
[1723250732260,5.633,2592.3,2589.7,22.56]
[1723250732261,0.045,2591.0,2590.9,3.85966]
[1723250732460,0.045,2591.2,2590.9,3.85966]
[1723250732699,0.045,2591.2,2591.1,3.85936]
[1723250733062,0.045,2591.0,2590.9,3.85963]
[1723250733372,0.045,2591.2,2590.9,3.85963]
[1723250733568,0.045,2591.6,2591.3,3.85906]
[1723250733790,3.85716,2592.6,2590.5,6.8602]
[1723250733791,0.045,2591.4,2591.1,3.85924]
[1723250733982,0.045,2591.2,2591.1,3.85924]
[1723250734774,0.045,2591.4,2591.2,3.85917]
[1723250735104,0.045,2591.4,2591.2,3.85918]
[1723250735696,0.045,2591.4,2591.3,3.85906]
[1723250736193,0.045,2591.4,2591.2,3.85918]
[1723250736400,0.045,2591.4,2591.0,3.85945]
[1723250736599,0.045,2591.4,2591.1,0.385945]
[1723250736897,0.045,2591.2,2591.0,3.85939]
[1723250737057,0.045,2591.2,2591.1,3.85936]
[1723250738697,0.045,2591.4,2591.3,3.85906]
[1723250739413,0.045,2591.4,2591.3,7.71812]
[1723250739903,0.045,2591.4,2591.3,8.489932]
[1723250740266,0.045,2591.4,2591.3,4.630872]
[1723250740583,0.045,2591.4,2591.3,3.85906]
[1723250740791,0.045,2591.4,2591.3,7.71812]
[1723250741421,3.85687,2592.8,2591.3,7.71812]
[1723250741422,0.045,2591.8,2591.7,7.71694]
[1723250741583,0.045,2592.0,2591.9,7.71634]
[1723250741966,0.045,2591.6,2591.5,3.85864]
[1723250742329,0.045,2591.6,2591.2,3.85912]
[1723250742605,3.5924,2592.1,2591.0,3.8594]
[1723250742606,0.045,2591.4,2591.0,3.8594]
[1723250742767,0.045,2591.4,2591.3,3.85906]
[1723250742967,0.045,2591.4,2590.8,3.6596]
[1723250742968,0.045,2591.6,2591.5,3.85876]
[1723250743171,0.045,2591.4,2590.9,3.8596]
[1723250743507,0.045,2590.8,2590.5,3.86015]
[1723250744007,0.045,2591.0,2590.9,3.85966]
[1723250744365,0.045,2590.8,2590.6,3.86004]
[1723250744580,0.045,2590.8,2590.6,3.86002]
[1723250744786,0.045,2590.8,2590.0,3.6596]
[1723250744787,0.045,2591.0,2590.9,3.85966]
[1723250745003,0.045,2591.2,2591.1,3.85936]
[1723250745219,3.5924,2591.5,2590.0,3.6596]
[1723250745220,0.045,2591.0,2590.9,3.85954]
[1723250745370,0.045,2591.0,2590.9,3.85966]
[1723250745570,0.045,2591.0,2590.9,7.71932]
[1723250745972,0.045,2591.4,2590.9,0.771932]
[1723250746199,0.045,2591.6,2591.5,3.85876]
[1723250746508,0.045,2591.6,2591.0,0.07717036]
[1723250746509,0.045,2591.8,2591.7,3.85847]
[1723250746808,0.045,2591.8,2591.7,7.79410237]
[1723250747412,3.85736,2592.5,2591.7,7.79410237]
[1723250747413,0.045,2592.0,2591.9,3.85817]
[1723250748007,0.045,2592.0,2591.9,7.71634]
[1723250748371,0.045,2592.0,2591.9,8.487974]
[1723250750413,0.045,2592.2,2592.1,7.71574]
[1723250751005,0.045,2592.2,2592.1,3.85787]
[1723250751188,0.045,2592.2,2592.0,3.85801]
[1723250751519,0.045,2591.8,2591.6,7.71706]
[1723250751678,0.045,2591.5,2591.4,3.85883]
[1723250751873,0.045,2591.7,2591.6,3.85862]
[1723250752113,0.045,2591.7,2591.4,3.85883]
[1723250752114,0.045,2592.1,2592.0,3.85802]
[1723250752433,0.045,2592.7,2592.2,3.85771]
[1723250752631,0.045,2592.9,2592.8,3.85683]
[1723250753191,0.045,2592.9,2592.8,7.71366]
[1723250753731,3.85467,2594.3,2594.0,3.85495]
[1723250753732,0.045,2594.3,2594.0,3.85495]
[1723250753902,0.045,2594.3,2592.9,3.6596]
[1723250753903,0.045,2594.8,2594.4,3.85445]
[1723250754110,0.045,2594.3,2594.0,3.855]
[1723250754308,0.045,2594.3,2594.2,3.85475]
[1723250754503,3.5924,2595.3,2594.2,0.55]
[1723250754504,0.045,2594.7,2594.2,0.55]
[1723250754706,0.045,2595.3,2595.0,3.85344]
[1723250754925,0.045,2594.8,2594.5,3.85429]
[1723250755188,0.045,2594.8,2594.6,3.85415]
[1723250755389,0.045,2594.6,2594.4,3.85444]
[1723250755625,0.045,2594.6,2594.4,3.85434]
[1723250755989,0.045,2595.1,2594.6,3.85401]
[1723250756468,0.045,2595.1,2594.8,3.85384]
[1723250756965,0.045,2594.6,2594.1,3.85488]
[1723250757178,0.045,2594.6,2594.4,3.85436]
[1723250757485,0.045,2594.4,2594.2,3.8547]
[1723250757766,0.045,2594.4,2594.2,3.85469]
[1723250758082,0.045,2594.4,2594.3,3.8546]
[1723250758229,0.045,2595.0,2593.9,2.154798]
[1723250758433,0.045,2594.8,2594.7,3.854]
[1723250758630,0.045,2594.5,2594.0,0.5814398]
[1723250758936,0.045,2594.5,2594.3,3.85447]
[1723250759350,0.045,2594.5,2594.4,3.85445]
[1723250759559,3.8533,2595.2,2594.6,3.85415]
[1723250759560,0.045,2594.7,2594.6,3.85415]
[1723250759944,0.045,2594.8,2594.7,3.85393]
[1723250760372,0.045,2594.8,2594.7,4.624734]
[1723250760744,0.045,2594.6,2594.3,3.85446]
[1723250761236,0.045,2595.0,2594.7,3.85393]
[1723250761572,0.045,2595.0,2594.9,3.85371]
[1723250761773,0.045,2595.0,2594.8,0.07706413]
[1723250762134,7.44526,2595.5,2594.5,3.85423]
[1723250762135,0.045,2594.7,2594.5,3.85423]
[1723250762560,0.045,2594.7,2594.6,3.85415]
[1723250762875,0.045,2594.8,2594.7,3.85401]
[1723250763233,7.44527,2595.5,2594.8,3.85376]
[1723250763234,0.045,2595.0,2594.8,3.85376]
[1723250763568,0.045,2595.0,2594.8,3.93081523]
[1723250763802,0.045,2594.8,2594.6,3.85411]
[1723250764014,0.045,2594.8,2594.4,3.85434]
[1723250764155,0.045,2594.6,2594.5,3.85419]
[1723250764494,0.045,2594.6,2594.5,7.70849]
[1723250764681,0.045,2594.6,2594.5,3.85419]
[1723250765754,0.045,2595.0,2594.5,0.770874]
[1723250766066,0.045,2594.8,2594.7,3.85401]
[1723250766392,0.045,2594.8,2594.7,7.78508043]
[1723250766598,0.045,2595.1,2595.0,3.85356]
[1723250766757,0.045,2594.9,2594.8,3.8538]
[1723250767253,0.045,2594.9,2594.8,7.70766]
[1723250768560,0.045,2594.9,2594.8,3.8538]
[1723250769094,0.045,2594.7,2594.6,23.41415]
[1723250769478,0.045,2594.7,2594.6,19.56]
[1723250770482,0.045,2594.4,2594.3,3.85457]
[1723250771083,0.045,2594.6,2594.5,3.8543]
[1723250771291,0.045,2595.0,2594.3,3.8545]
[1723250771487,0.045,2595.0,2594.9,7.70742]
[1723250771677,0.045,2595.0,2594.9,3.85371]
[1723250771874,0.045,2595.0,2594.9,7.70742]
[1723250772295,0.045,2595.0,2594.9,3.85371]
[1723250772772,0.045,2595.0,2594.8,3.85379]
[1723250772972,0.045,2594.6,2594.5,19.56]
[1723250773176,0.045,2594.3,2593.8,19.56]
[1723250773380,0.045,2593.9,2593.6,3.85553]
[1723250773698,0.045,2593.7,2593.6,3.85564]
[1723250774081,0.045,2593.5,2593.3,3.85597]
[1723250774394,0.045,2593.5,2593.1,3.85635]
[1723250774610,0.045,2593.3,2592.9,3.85664]
[1723250774778,0.045,2593.3,2592.9,3.85659]
[1723250774979,0.045,2593.3,2593.1,3.85629]
[1723250775166,0.045,2593.3,2593.2,3.85623]
[1723250775367,0.045,2593.3,2593.1,3.85629]
[1723250775863,0.045,2593.3,2592.9,3.85661]
[1723250775864,0.045,2592.9,2592.6,0.741575]
[1723250776094,0.045,2592.9,2592.6,3.8571]
[1723250776297,0.045,2592.9,2592.4,3.85741]
[1723250776298,0.045,2592.7,2592.4,7.71474]
[1723250776470,0.045,2592.5,2592.2,3.85762]
[1723250776665,0.045,2592.3,2592.0,7.71588]
[1723250776866,0.045,2592.3,2592.0,3.85792]
[1723250777406,0.045,2592.1,2591.8,3.85825]
[1723250777689,3.0,2593.0,2591.1,3.5585]
[1723250777690,0.045,2591.9,2591.1,3.5585]
[1723250777889,0.045,2592.1,2592.0,3.85802]
[1723250778070,0.045,2593.4,2593.1,3.85638]
[1723250778270,0.045,2593.2,2593.0,3.85653]
[1723250778508,0.045,2593.6,2593.0,0.03813337]
[1723250778709,0.045,2593.4,2593.1,3.85633]
[1723250779093,0.045,2593.2,2593.1,3.85627]
[1723250779274,0.04347632,2593.2,2593.1,3.85627]
[1723250780005,0.04347632,2593.2,2592.9,3.85662]
[1723250780209,0.04347632,2593.0,2592.9,3.85668]
[1723250781114,0.04347632,2593.0,2592.9,7.71336]
[1723250781282,4.430935,2593.6,2592.9,7.71336]
[1723250781283,0.04347632,2593.2,2592.9,3.85664]
[1723250781487,0.04347632,2593.2,2593.0,3.85648]
[1723250781692,0.04347632,2593.2,2593.0,3.85644]
[1723250782286,0.04347632,2593.2,2593.1,3.93349386]
[1723250782572,0.04347632,2593.6,2593.1,0.77899339]
[1723250782777,0.04347632,2593.6,2593.2,0.0771034]
[1723250783017,0.04347632,2593.8,2593.7,3.85549]
[1723250783379,0.04347632,2593.6,2593.5,3.85573]
[1723250783575,0.04347632,2593.4,2593.1,23.41629]
[1723250783779,0.04347632,2593.2,2593.1,3.85629]
[1723250784183,0.04347632,2593.2,2593.1,7.71267]
[1723250784380,0.04347632,2593.7,2592.9,19.56]
[1723250784578,0.04347632,2593.7,2593.0,0.55]
[1723250784911,0.04347632,2593.2,2593.1,5.86729]
[1723250785080,0.04347632,2593.2,2593.0,3.85639]
[1723250785796,0.04347632,2593.2,2593.1,7.71276]
[1723250786185,3.6776,2593.9,2592.9,19.56]
[1723250786186,0.04347632,2593.4,2593.3,3.85609]
[1723250786391,0.04347632,2593.4,2593.2,3.85623]
[1723250786714,0.04347632,2592.9,2592.8,27.05]
[1723250786912,3.6776,2593.3,2592.4,3.85732]
[1723250786913,0.04347632,2592.6,2592.4,3.85732]
[1723250787119,0.04347632,2592.6,2592.5,7.71456]
[1723250787287,0.04347632,2592.6,2592.5,3.85728]
[1723250787725,0.04347632,2592.6,2592.3,3.85756]
[1723250787996,0.04347632,2592.4,2592.3,3.85756]
[1723250788420,0.04347632,2592.4,2592.1,11.34776]
[1723250788634,0.04347632,2592.4,2592.2,3.85772]
[1723250788987,0.04347632,2592.6,2592.5,3.85728]
[1723250789830,0.04347632,2592.8,2592.3,3.85756]